bitfinex/quotes_SOLUSD_20240616
["timestamp","ask_amount","ask_price","bid_price","bid_amount"]
[1718529587925,52.90861487,144.17,144.15,2.5667]
[1718529588090,42.64301487,144.17,144.15,2.5667]
[1718529588295,48.31301487,144.17,144.15,2.5667]
[1718529588495,58.57861487,144.17,144.15,2.5667]
[1718529589230,2.5665,144.16,144.14,25.6685]
[1718529589536,2.5665,144.16,144.14,7.7005]
[1718529590221,7.6997,144.16,144.14,2.5668]
[1718529591218,45.20931487,144.17,144.15,12.8333]
[1718529591219,7.24451487,144.17,144.15,12.8333]
[1718529591427,28.7662,144.18,144.15,25.6665]
[1718529591634,25.6625,144.18,144.15,25.6665]
[1718529591815,2.5664,144.17,144.15,25.6666]
[1718529593020,13.3689,144.18,144.16,2.5665]
[1718529593907,13.3689,144.18,144.16,7.6996]
[1718529593908,8.2363,144.18,144.16,7.6996]
[1718529594698,8.2363,144.18,144.16,15.3993]
[1718529595021,8.2362,144.18,144.16,25.6655]
[1718529595209,5.67,144.18,144.16,25.6655]
[1718529595528,8.2362,144.18,144.16,25.6655]
[1718529595915,5.67,144.18,144.17,2.5664]
[1718529596411,32.90488444,144.19,144.17,2.5664]
[1718529596412,12.91348444,144.19,144.18,2.5662]
[1718529596822,5.67,144.19,144.18,2.5662]
[1718529597013,5.67,144.19,144.17,23.0971]
[1718529597014,8.236,144.19,144.17,25.6633]
[1718529597507,8.236,144.19,144.17,7.6988]
[1718529598212,21.0663,144.19,144.16,25.6646]
[1718529598409,2.5662,144.18,144.16,25.6646]
[1718529598612,7.6986,144.18,144.16,7.6994]
[1718529598802,2.5662,144.18,144.16,15.3991]
[1718529599209,7.6987,144.18,144.16,2.5664]
[1718529599715,13.3687,144.18,144.16,7.6995]
[1718529600221,8.2362,144.18,144.16,15.3992]
[1718529600609,8.2362,144.18,144.16,7.6995]
[1718529601622,13.3686,144.18,144.16,7.6995]
[1718529601817,8.2362,144.18,144.16,7.6995]
[1718529602033,8.2362,144.18,144.16,25.6654]
[1718529602235,8.2362,144.18,144.16,7.6995]
[1718529603044,2.5662,144.18,144.16,7.6995]
[1718529603246,8.2362,144.18,144.16,7.6995]
[1718529604218,8.2362,144.18,144.16,15.3992]
[1718529604418,7.6985,144.19,144.17,7.6992]
[1718529604628,13.3685,144.19,144.17,7.6992]
[1718529605142,40.5550978,144.21,144.15,20.85]
[1718529605444,8.2359,144.2,144.18,15.3971]
[1718529605814,2.5659,144.2,144.18,15.3971]
[1718529606332,21.0652,144.2,144.18,2.5661]
[1718529606558,7.2427978,144.21,144.16,7.6993]
[1718529606711,5.67,144.21,144.19,5.1319]
[1718529606913,23.0909,144.22,144.2,2.5658]
[1718529606914,7.6967,144.22,144.2,2.5658]
[1718529607227,5.67,144.21,144.2,2.5658]
[1718529607429,7.6967,144.22,144.2,2.5658]
[1718529607751,9.80584045,144.23,144.2,7.6974]
[1718529607934,2.5656,144.22,144.2,7.6975]
[1718529608127,13.3666,144.22,144.2,2.5658]
[1718529608330,7.6966,144.22,144.2,2.5658]
[1718529608543,21.0625,144.23,144.21,2.5657]
[1718529609256,2.5655,144.22,144.2,25.6582]
[1718529609423,2.5655,144.22,144.2,7.6973]
[1718529610519,25.6543,144.23,144.21,2.5657]
[1718529610840,31.3243,144.23,144.21,2.5657]
[1718529611036,13.3663,144.23,144.21,2.5657]
[1718529611250,13.3663,144.23,144.21,7.697]
[1718529611819,21.0624,144.23,144.21,2.5657]
[1718529612225,2.5655,144.22,144.21,2.5657]
[1718529612825,31.3238,144.23,144.21,2.5657]
[1718529613041,25.6538,144.23,144.21,2.5657]
[1718529613233,31.3238,144.23,144.21,2.5657]
[1718529613545,7.23953718,144.24,144.19,7.6978]
[1718529613546,2.5658,144.21,144.19,7.6978]
[1718529613744,13.3672,144.21,144.19,7.6978]
[1718529614040,13.3672,144.21,144.19,2.5659]
[1718529614245,13.3672,144.21,144.19,7.698]
[1718529614445,7.6962,144.23,144.21,2.5656]
[1718529614618,2.5654,144.23,144.21,7.6968]
[1718529614825,2.5654,144.23,144.21,15.3938]
[1718529615283,2.5654,144.23,144.21,7.6968]
[1718529616450,2.5653,144.23,144.21,7.6967]
[1718529617046,2.5653,144.23,144.21,15.3937]
[1718529617641,32.89183718,144.24,144.22,2.5654]
[1718529617945,2.5653,144.23,144.21,23.0909]
[1718529618145,2.5653,144.23,144.21,25.6564]
[1718529618369,22.63103718,144.24,144.22,2.5654]
[1718529618520,38.56183718,144.24,144.22,2.5654]
[1718529618726,2.5653,144.23,144.21,25.6564]
[1718529619142,13.3665,144.22,144.2,7.6973]
[1718529619455,5.67,144.22,144.21,2.5657]
[1718529619651,8.2355,144.22,144.2,25.6583]
[1718529619963,7.6964,144.23,144.21,7.6971]
[1718529620123,2.5655,144.23,144.21,7.6971]
[1718529620324,32.89213718,144.24,144.22,2.5654]
[1718529620557,8.2353,144.23,144.21,25.6566]
[1718529622582,2.5656,144.22,144.2,7.6973]
[1718529622787,31.3259,144.22,144.2,2.5658]
[1718529623279,13.3669,144.22,144.2,7.6975]
[1718529623778,21.0635,144.22,144.2,2.5658]
[1718529624285,13.3669,144.22,144.2,7.6975]
[1718529624477,13.3669,144.22,144.2,2.5658]
[1718529624788,13.3669,144.22,144.2,7.6975]
[1718529625783,9.80473718,144.24,144.17,37.4027]
[1718529625986,5.67,144.23,144.22,2.5654]
[1718529626483,8.2353,144.23,144.21,25.6558]
[1718529626782,5.67,144.23,144.22,25.655]
[1718529627467,8.2352,144.24,144.22,25.655]
[1718529628401,8.2352,144.24,144.22,17.9585]
[1718529628562,13.3655,144.24,144.22,7.6965]
[1718529629877,21.061,144.24,144.22,2.5655]
[1718529630704,10.43,144.25,144.17,16.5527]
[1718529630705,8.235,144.25,144.23,5.1305]
[1718529630889,8.235,144.25,144.23,7.6957]
[1718529631090,8.235,144.25,144.23,15.3917]
[1718529631788,13.365,144.25,144.23,7.6957]
[1718529632572,21.06,144.25,144.23,2.5652]
[1718529633198,8.235,144.25,144.23,25.653]
[1718529633487,2.565,144.25,144.23,25.653]
[1718529633686,7.6949,144.25,144.23,7.6957]
[1718529634500,7.6949,144.25,144.23,12.8264]
[1718529634501,2.565,144.25,144.23,12.8264]
[1718529634889,2.565,144.25,144.23,7.6957]
[1718529635195,2.5652,144.24,144.22,25.6539]
[1718529635375,2.5652,144.24,144.22,23.0886]
[1718529635696,7.6951,144.25,144.23,7.6959]
[1718529636091,2.5651,144.25,144.23,15.3919]
[1718529636400,2.5651,144.25,144.24,2.5651]
[1718529636596,9.8053448,144.26,144.25,2.5649]
[1718529636779,7.6945,144.26,144.24,25.6512]
[1718529636980,2.5649,144.26,144.24,25.6512]
[1718529638004,7.6945,144.26,144.24,25.6512]
[1718529638184,7.6945,144.26,144.24,7.6952]
[1718529638391,2.5649,144.26,144.24,15.3906]
[1718529638588,17.953,144.27,144.25,2.5649]
[1718529638899,2.5648,144.26,144.25,2.5649]
[1718529640997,2.5648,144.26,144.24,25.6511]
[1718529641170,7.6942,144.27,144.25,7.6947]
[1718529641896,2.5647,144.27,144.25,7.6947]
[1718529642104,2.5648,144.26,144.25,2.5648]
[1718529642304,7.6944,144.26,144.24,25.6506]
[1718529642894,7.6944,144.26,144.24,7.695]
[1718529642895,15.3888,144.26,144.24,7.695]
[1718529643299,7.6944,144.26,144.24,7.695]
[1718529644518,12.824,144.26,144.24,2.565]
[1718529644685,2.5649,144.25,144.23,25.6522]
[1718529645085,2.5649,144.25,144.24,2.5651]
[1718529645284,31.3182,144.26,144.24,2.5651]
[1718529645504,13.3645,144.26,144.24,7.6953]
[1718529646309,8.2349,144.26,144.24,23.0861]
[1718529646609,8.2349,144.26,144.25,2.5649]
[1718529647192,28.7533,144.26,144.24,2.565]
[1718529647513,5.67,144.25,144.24,2.565]
[1718529647714,7.6945,144.26,144.24,15.3906]
[1718529648008,8.2348,144.26,144.24,25.651]
[1718529648187,5.67,144.25,144.24,7.6952]
[1718529648804,13.3644,144.26,144.24,7.6952]
[1718529649504,8.2348,144.26,144.24,12.8255]
[1718529649909,8.2348,144.26,144.24,25.6511]
[1718529650598,12.8249,144.25,144.22,5.1307]
[1718529650909,5.67,144.24,144.23,7.6957]
[1718529651118,5.67,144.24,144.23,2.5652]
[1718529651719,5.67,144.24,144.23,15.3918]
[1718529652092,5.67,144.24,144.23,25.6531]
[1718529654313,7.23963799,144.26,144.25,2.5649]
[1718529654519,16.15443799,144.26,144.24,25.6511]
[1718529654745,5.67,144.25,144.24,2.565]
[1718529655912,5.67,144.25,144.24,7.6953]
[1718529656117,5.67,144.25,144.24,15.3908]
[1718529656800,5.67,144.25,144.24,7.6953]
[1718529657424,8.2349,144.25,144.24,2.565]
[1718529659220,5.67,144.25,144.24,2.565]
[1718529660221,5.67,144.25,144.24,7.6953]
[1718529660424,7.91963799,144.26,144.25,2.5649]
[1718529660630,5.1294,144.27,144.25,7.6948]
[1718529660817,5.67,144.26,144.25,7.6948]
[1718529661127,7.23934999,144.27,144.26,15.3888]
[1718529661304,7.6933,144.28,144.26,15.3888]
[1718529661505,25.67,144.27,144.26,25.648]
[1718529661812,25.67,144.27,144.26,15.3888]
[1718529662117,25.67,144.27,144.26,7.6944]
[1718529662313,28.2346,144.27,144.26,2.5648]
[1718529662514,28.2346,144.27,144.25,25.6486]
[1718529662713,5.67,144.26,144.25,2.5648]
[1718529662916,31.3184,144.26,144.24,2.5651]
[1718529663219,8.2349,144.25,144.23,23.0877]
[1718529663427,8.2349,144.25,144.23,25.6529]
[1718529663803,8.2349,144.25,144.24,2.5651]
[1718529664826,5.67,144.25,144.24,2.5651]
[1718529665032,5.67,144.25,144.23,2.5653]
[1718529665033,31.3201,144.25,144.23,2.5653]
[1718529665344,8.2351,144.24,144.22,25.6541]
[1718529665532,25.6501,144.25,144.23,2.5653]
[1718529665908,2.5651,144.25,144.23,15.3919]
[1718529666405,7.695,144.25,144.23,7.6959]
[1718529667811,5.67,144.24,144.23,7.6959]
[1718529668344,5.67,144.24,144.23,15.3919]
[1718529669050,5.67,144.24,144.23,25.6532]
[1718529676347,9.80475151,144.26,144.24,15.3908]
[1718529676644,5.67,144.25,144.24,25.6511]
[1718529679045,7.23985151,144.26,144.25,7.6948]
[1718529679246,12.90985151,144.26,144.25,25.6496]
[1718529679718,12.90985151,144.26,144.25,7.6948]
[1718529681044,15.47465151,144.26,144.25,2.5649]
[1718529681256,15.47465151,144.26,144.24,25.6503]
[1718529681547,5.67,144.25,144.24,25.6503]
[1718529681954,9.80465151,144.26,144.25,2.5649]
[1718529682128,5.67,144.26,144.25,7.6948]
[1718529682329,8.2347,144.27,144.25,15.3897]
[1718529682536,5.67,144.27,144.25,23.0846]
[1718529682734,8.2346,144.27,144.26,2.5648]
[1718529683136,8.2346,144.27,144.25,25.6494]
[1718529684954,8.2346,144.27,144.26,2.5648]
[1718529685135,8.2346,144.27,144.25,25.6494]
[1718529685466,5.67,144.27,144.26,7.6944]
[1718529685632,8.2346,144.27,144.25,15.3893]
[1718529685825,8.2346,144.27,144.25,25.6489]
[1718529687344,8.2346,144.27,144.26,2.5648]
[1718529687536,5.67,144.27,144.26,2.5648]
[1718529688238,0.17,144.28,144.26,23.083]
[1718529688442,5.67,144.27,144.26,7.6942]
[1718529689467,5.67,144.27,144.26,2.5646]
[1718529690137,8.2346,144.27,144.25,25.6487]
[1718529690467,5.67,144.26,144.25,25.6487]
[1718529691267,25.9847,144.28,144.26,2.5647]
[1718529691451,5.67,144.27,144.26,2.5647]
[1718529693254,5.67,144.27,144.26,7.6942]
[1718529693640,5.67,144.27,144.26,15.3886]
[1718529693839,2.5646,144.28,144.26,15.3886]
[1718529694057,8.2346,144.28,144.26,15.3886]
[1718529694256,5.67,144.28,144.26,5.1295]
[1718529694459,7.23877641,144.29,144.28,15.3866]
[1718529694641,8.2341,144.3,144.28,2.5643]
[1718529694972,13.3623,144.3,144.28,7.6931]
[1718529695368,13.3623,144.3,144.28,2.5643]
[1718529695755,2.5643,144.29,144.27,25.645]
[1718529695960,8.2344,144.28,144.26,7.694]
[1718529696148,8.2344,144.28,144.26,2.5646]
[1718529696342,8.2344,144.28,144.26,7.6941]
[1718529696543,8.2344,144.28,144.26,15.3885]
[1718529696950,5.67,144.28,144.26,15.3885]
[1718529697167,5.67,144.28,144.27,2.5646]
[1718529697889,5.67,144.28,144.27,17.9523]
[1718529698169,5.67,144.28,144.27,25.6462]
[1718529700371,5.67,144.28,144.27,7.6938]
[1718529700971,5.67,144.28,144.27,2.5646]
[1718529701663,8.2345,144.28,144.26,7.6941]
[1718529701855,8.2345,144.28,144.26,15.3885]
[1718529702251,8.2345,144.28,144.26,7.6941]
[1718529702567,8.2345,144.28,144.26,15.3885]
[1718529703274,8.2345,144.28,144.25,10.2594]
[1718529703275,13.3623,144.3,144.28,2.5644]
[1718529704660,21.0546,144.3,144.28,2.5644]
[1718529704978,8.2342,144.29,144.27,25.6452]
[1718529705153,8.2342,144.29,144.26,2.5646]
[1718529705154,13.3636,144.28,144.26,2.5646]
[1718529705355,5.67,144.27,144.26,2.5646]
[1718529705683,5.67,144.27,144.26,7.6942]
[1718529705856,5.67,144.27,144.26,2.5646]
[1718529706058,5.67,144.27,144.26,7.6942]
[1718529706575,13.3634,144.28,144.26,2.5646]
[1718529706962,8.2345,144.28,144.26,7.6941]
[1718529707162,5.67,144.28,144.26,12.8237]
[1718529707364,8.2344,144.28,144.26,25.6474]
[1718529708491,28.7505,144.28,144.25,7.6945]
[1718529708788,5.67,144.27,144.26,2.5647]
[1718529709092,5.67,144.27,144.26,2.5648]
[1718529712066,5.67,144.27,144.26,7.6944]
[1718529720891,5.67,144.27,144.26,2.5648]
[1718529722506,8.2345,144.28,144.26,2.5648]
[1718529722680,8.2345,144.28,144.26,7.6944]
[1718529723105,13.3634,144.28,144.26,2.5648]
[1718529723482,5.67,144.27,144.26,2.5648]
[1718529724990,5.67,144.27,144.26,7.6944]
[1718529725189,5.67,144.27,144.26,2.5648]
[1718529726310,7.6934,144.28,144.26,2.5648]
[1718529726610,5.67,144.27,144.26,7.6944]
[1718529728994,5.67,144.27,144.26,2.5648]
[1718529732499,32.88165739,144.29,144.26,12.8238]
[1718529732694,7.23805739,144.29,144.27,12.8229]
[1718529733017,5.67,144.29,144.27,25.6459]
[1718529733219,8.2342,144.29,144.27,25.6459]
[1718529733595,8.2342,144.29,144.27,7.6936]
[1718529733917,13.3628,144.29,144.27,2.5645]
[1718529734838,21.0557,144.29,144.26,23.0823]
[1718529735216,21.0557,144.29,144.26,25.6469]
[1718529735426,15.3857,144.29,144.26,25.6469]
[1718529735616,2.5644,144.28,144.26,25.6469]
[1718529736540,2.5641,144.3,144.28,2.5643]
[1718529737036,15.3846,144.3,144.27,25.6456]
[1718529737417,15.3846,144.3,144.28,2.5644]
[1718529737955,2.5638,144.32,144.3,2.564]
[1718529738330,2.5638,144.32,144.3,7.6921]
[1718529738642,7.6913,144.32,144.3,2.564]
[1718529738942,13.3613,144.32,144.3,2.564]
[1718529739118,13.3613,144.32,144.29,25.6416]
[1718529739119,21.0525,144.32,144.29,25.6416]
[1718529739332,2.5638,144.32,144.3,7.692]
[1718529740839,2.5638,144.32,144.3,15.3842]
[1718529741514,2.5638,144.32,144.3,7.692]
[1718529741928,7.6909,144.33,144.31,2.5638]
[1718529742232,8.2336,144.33,144.32,2.5637]
[1718529742450,8.2335,144.34,144.32,7.691]
[1718529742745,7.6902,144.34,144.32,7.691]
[1718529743109,286.4026,144.35,144.32,23.0733]
[1718529743308,286.4026,144.35,144.33,2.5635]
[1718529743309,2.5633,144.34,144.33,2.5635]
[1718529744222,2.5633,144.34,144.32,23.0733]
[1718529744406,2.5633,144.34,144.32,25.6369]
[1718529745460,2.5633,144.34,144.32,23.0733]
[1718529745649,7.69,144.34,144.32,7.6909]
[1718529745817,13.36,144.34,144.32,2.5636]
[1718529746550,13.36,144.34,144.32,7.691]
[1718529746928,8.2333,144.34,144.32,15.3822]
[1718529747414,5.67,144.34,144.32,23.0735]
[1718529747614,5.67,144.34,144.33,2.5635]
[1718529748112,31.304,144.34,144.31,5.1275]
[1718529748319,2.5635,144.34,144.32,15.3821]
[1718529748518,8.2335,144.34,144.32,15.3821]
[1718529748743,8.2335,144.34,144.32,7.6909]
[1718529749255,13.3602,144.34,144.32,7.6909]
[1718529749435,13.3602,144.34,144.32,2.5635]
[1718529749635,5.67,144.33,144.32,2.5635]
[1718529750232,5.67,144.33,144.32,7.6909]
[1718529751044,5.67,144.33,144.32,25.637]
[1718529752148,262.7899,144.35,144.33,2.5635]
[1718529752446,5.17,144.34,144.33,7.6906]
[1718529752748,5.17,144.34,144.33,2.5635]
[1718529752970,263.3333,144.35,144.33,7.6906]
[1718529753150,2.5634,144.34,144.32,7.6908]
[1718529753327,5.67,144.34,144.32,23.0734]
[1718529753526,8.2334,144.34,144.32,25.637]
[1718529754051,8.2334,144.34,144.32,7.6909]
[1718529754052,5.67,144.33,144.32,7.6909]
[1718529754647,8.2335,144.33,144.31,7.6913]
[1718529754945,5.67,144.32,144.28,7.6931]
[1718529755152,8.2339,144.31,144.29,7.6927]
[1718529755329,5.67,144.31,144.3,5.1282]
[1718529755659,5.67,144.31,144.3,15.3846]
[1718529755821,5.67,144.31,144.3,2.5641]
[1718529756441,5.67,144.31,144.3,7.6923]
[1718529757929,5.67,144.31,144.3,2.5641]
[1718529759552,5.67,144.31,144.29,25.6419]
[1718529760055,2.5639,144.32,144.3,2.5641]
[1718529760224,5.67,144.31,144.3,7.6922]
[1718529760425,5.67,144.31,144.3,2.5641]
[1718529760950,13.3614,144.32,144.3,2.5641]
[1718529761258,25.8068,144.33,144.3,12.8203]
[1718529761438,25.8068,144.33,144.3,23.0766]
[1718529761439,5.67,144.32,144.3,23.0766]
[1718529761635,5.67,144.32,144.31,2.5638]
[1718529761827,5.67,144.32,144.31,2.5639]
[1718529763332,5.67,144.32,144.3,25.6405]
[1718529763761,8.2337,144.32,144.3,25.6405]
[1718529764056,5.67,144.32,144.3,25.6405]
[1718529764373,8.2337,144.32,144.3,25.6405]
[1718529765650,12.36311558,144.34,144.31,23.0748]
[1718529765832,5.67,144.33,144.32,2.5637]
[1718529766433,8.2335,144.33,144.31,25.6385]
[1718529767260,32.87041558,144.34,144.31,7.6915]
[1718529767430,7.23611558,144.34,144.32,12.8185]
[1718529767633,25.6326,144.35,144.32,23.0733]
[1718529767634,23.0693,144.35,144.32,23.0733]
[1718529767857,13.3598,144.35,144.33,2.5635]
[1718529768530,2.5634,144.34,144.32,25.6368]
[1718529768733,2.5634,144.34,144.32,7.6908]
[1718529769459,7.6901,144.34,144.32,7.6908]
[1718529769642,13.3601,144.34,144.32,7.6908]
[1718529770547,8.2334,144.34,144.32,7.6908]
[1718529771671,25.6325,144.35,144.32,15.382]
[1718529771860,5.67,144.34,144.32,15.382]
[1718529772164,5.67,144.34,144.33,2.5635]
[1718529772370,8.2334,144.34,144.32,7.6909]
[1718529773063,2.5634,144.34,144.32,7.6909]
[1718529773242,8.2334,144.34,144.32,7.6909]
[1718529773567,2.5634,144.34,144.32,15.3821]
[1718529773742,8.2334,144.34,144.32,15.3821]
[1718529774558,5.67,144.34,144.32,23.0734]
[1718529774863,5.67,144.34,144.33,2.5635]
[1718529775059,8.2333,144.34,144.32,25.6369]
[1718529775492,5.67,144.34,144.32,25.6369]
[1718529775844,8.2334,144.34,144.32,25.6369]
[1718529776039,5.67,144.34,144.33,2.5635]
[1718529776872,5.67,144.34,144.33,7.6906]
[1718529777170,7.69,144.35,144.33,7.6906]
[1718529777354,5.67,144.34,144.33,7.6906]
[1718529778268,5.67,144.34,144.33,2.5635]
[1718529778563,5.67,144.34,144.33,7.6906]
[1718529779069,2.5632,144.35,144.33,7.6906]
[1718529779276,5.67,144.34,144.33,15.3813]
[1718529779643,5.67,144.34,144.33,25.6355]
[1718529779953,5.67,144.35,144.34,2.5633]
[1718529780153,8.2332,144.35,144.33,25.6354]
[1718529780354,8.2332,144.35,144.33,7.6905]
[1718529782255,8.2332,144.35,144.33,15.3811]
[1718529783000,8.2332,144.35,144.33,7.6905]
[1718529783162,25.6313,144.36,144.33,23.0719]
[1718529783361,25.6313,144.36,144.34,2.5633]
[1718529783663,5.67,144.35,144.34,2.5633]
[1718529784072,5.67,144.35,144.33,25.6353]
[1718529784277,5.67,144.35,144.34,2.5633]
[1718529784980,5.67,144.35,144.33,25.6353]
[1718529785391,8.2332,144.35,144.33,7.6905]
[1718529785884,21.0492,144.35,144.33,2.5634]
[1718529786387,31.3044,144.34,144.31,12.8192]
[1718529786589,5.67,144.33,144.32,2.5637]
[1718529786797,8.2335,144.33,144.31,25.6382]
[1718529787371,5.67,144.33,144.32,2.5637]
[1718529787575,5.67,144.33,144.32,7.6911]
[1718529788291,8.2336,144.33,144.31,7.6912]
[1718529788472,25.6344,144.34,144.32,2.5637]
[1718529788673,15.3805,144.34,144.32,2.5637]
[1718529788997,5.67,144.33,144.32,2.5637]
[1718529789598,5.67,144.33,144.32,7.6911]
[1718529790111,33.37801182,144.35,144.32,23.0735]
[1718529790412,5.67,144.33,144.32,25.6371]
[1718529791001,12.36181182,144.35,144.33,2.5634]
[1718529791304,5.67,144.34,144.33,2.5634]
[1718529791602,22.61471182,144.35,144.33,2.5635]
[1718529791898,5.67,144.34,144.33,2.5635]
[1718529792202,8.2333,144.34,144.32,25.6371]
[1718529792969,5.67,144.34,144.32,25.6371]
[1718529793298,8.2334,144.34,144.32,25.6371]
[1718529795805,8.2334,144.34,144.32,7.691]
[1718529796986,13.3601,144.34,144.32,2.5636]
[1718529800978,7.6912,144.32,144.3,2.5639]
[1718529801178,8.2337,144.32,144.3,7.692]
[1718529801390,8.2337,144.32,144.3,2.5639]
[1718529801391,13.3612,144.32,144.3,2.5639]
[1718529801571,5.67,144.31,144.24,16.3897]
[1718529801778,13.3634,144.28,144.25,5.1298]
[1718529802080,13.3634,144.28,144.25,12.8245]
[1718529802277,8.2345,144.28,144.25,23.0839]
[1718529802476,8.2345,144.28,144.26,7.6943]
[1718529802686,5.67,144.28,144.26,15.3886]
[1718529803496,5.67,144.29,144.28,2.5643]
[1718529803713,5.67,144.3,144.28,15.3864]
[1718529803994,5.67,144.3,144.28,23.0799]
[1718529804208,5.67,144.3,144.28,25.6442]
[1718529804426,8.2341,144.3,144.28,7.6931]
[1718529804826,23.0757,144.31,144.28,12.822]
[1718529804827,25.6397,144.31,144.28,12.822]
[1718529805122,5.67,144.3,144.28,25.6441]
[1718529805894,8.2341,144.3,144.28,7.6931]
[1718529806704,5.67,144.3,144.28,7.6931]
[1718529807104,8.2341,144.3,144.28,7.6931]
[1718529807513,13.3623,144.3,144.27,23.0806]
[1718529807721,13.3623,144.3,144.28,2.5644]
[1718529808012,8.2341,144.3,144.28,2.5644]
[1718529808598,21.0546,144.3,144.27,25.645]
[1718529808814,21.0546,144.3,144.27,23.0806]
[1718529809007,2.5643,144.29,144.27,7.6935]
[1718529809336,7.57724956,144.32,144.28,23.0797]
[1718529809337,25.6401,144.31,144.28,23.0797]
[1718529809635,25.6401,144.31,144.25,26.48]
[1718529809636,5.67,144.31,144.3,2.564]
[1718529809801,2.5639,144.31,144.29,7.6924]
[1718529810003,8.2339,144.31,144.29,7.6924]
[1718529810730,8.2339,144.31,144.29,2.5641]
[1718529811224,2.5641,144.3,144.28,7.6929]
[1718529811539,8.2341,144.3,144.28,7.6929]
[1718529812704,5.67,144.3,144.28,15.3862]
[1718529813104,7.6919,144.31,144.29,2.5642]
[1718529813905,15.3837,144.31,144.28,25.6437]
[1718529814305,17.49244956,144.32,144.3,2.564]
[1718529814306,9.80094956,144.32,144.3,2.564]
[1718529814650,22.61964956,144.32,144.29,25.6416]
[1718529814810,2.5639,144.31,144.29,7.6924]
[1718529815011,7.6917,144.31,144.29,2.5641]
[1718529816851,2.5639,144.31,144.29,2.5641]
[1718529818047,2.5639,144.31,144.29,7.6926]
[1718529818621,32.87524956,144.32,144.29,7.6926]
[1718529818824,2.5639,144.31,144.29,15.3854]
[1718529819413,32.87524956,144.32,144.29,15.3854]
[1718529820642,32.87514956,144.32,144.29,15.3854]
[1718529820845,32.87514956,144.32,144.3,2.564]
[1718529821927,14.92874956,144.32,144.3,2.564]
[1718529822130,7.23724956,144.32,144.3,15.3843]
[1718529822317,7.23724956,144.32,144.31,2.5639]
[1718529822516,7.23724956,144.32,144.31,7.6917]
[1718529822718,23.071,144.34,144.31,7.6916]
[1718529823023,8.2336,144.33,144.31,7.6916]
[1718529823422,13.3607,144.33,144.31,2.5638]
[1718529823938,5.67,144.32,144.31,2.5638]
[1718529824442,5.67,144.32,144.3,25.6398]
[1718529824740,8.2337,144.32,144.3,25.6398]
[1718529825253,25.6358,144.33,144.3,25.6398]
[1718529825455,31.3058,144.33,144.31,2.5639]
[1718529825757,15.46928587,144.34,144.32,2.5637]
[1718529826040,15.46928587,144.34,144.32,7.6911]
[1718529826342,20.59598587,144.34,144.32,2.5637]
[1718529826543,20.59598587,144.34,144.31,25.6384]
[1718529826746,28.28618587,144.34,144.31,25.6384]
[1718529826949,14.92598587,144.34,144.32,2.5637]
[1718529827246,13.3602,144.34,144.32,2.5637]
[1718529827416,2.5635,144.34,144.32,2.5637]
[1718529827618,9.79820437,144.35,144.33,2.5635]
[1718529827824,13.3597,144.35,144.33,2.5635]
[1718529828250,8.2333,144.35,144.33,7.6905]
[1718529828547,8.2333,144.35,144.33,2.5635]
[1718529828839,8.2334,144.34,144.32,25.6365]
[1718529829045,8.2334,144.34,144.32,7.6908]
[1718529829546,8.2333,144.34,144.32,15.3819]